fUSD/lending_fUSD_20260416
["ID","MTS","AMOUNT","RATE_DAILY","PERIOD"]
[420604955,1776313832176,-201.07430715,8.657e-05,2]
[420604956,1776313832185,-150.0,8.657e-05,2]
[420604957,1776313832195,-150.0,8.657e-05,2]
[420604959,1776313832204,-200.0,8.657e-05,2]
[420604961,1776313832214,-157.69632005,8.657e-05,2]
[420604963,1776313832224,-150.0,8.657e-05,2]
[420604965,1776313832234,-150.0,8.657e-05,2]
[420604967,1776313832243,-200.0,8.657e-05,2]
[420604969,1776313832254,-150.0,8.657e-05,2]
[420604971,1776313832264,-150.0,8.657e-05,2]
[420604973,1776313832274,-150.0,8.657e-05,2]
[420604975,1776313832284,-200.0,8.657e-05,2]
[420604977,1776313832294,-500.0,8.657e-05,2]
[420604979,1776313832304,-500.0,8.657e-05,2]
[420604981,1776313832313,-500.0,8.657e-05,2]
[420604984,1776313832323,-612.64553668,8.657e-05,2]
[420604987,1776313832333,-150.0,8.657e-05,2]
[420604990,1776313832343,-150.0,8.657e-05,2]
[420604993,1776313832353,-150.0,8.657e-05,2]
[420604996,1776313832363,-181.15912155,8.657e-05,2]
[420604999,1776313832372,-500.0,8.657e-05,2]
[420605002,1776313832382,-500.0,8.657e-05,2]
[420605005,1776313832392,-500.0,8.657e-05,2]
[420605009,1776313832403,-377.35894625,8.657e-05,2]
[420605012,1776313832413,-600.0,8.657e-05,2]
[420605015,1776313832423,-600.0,8.657e-05,2]
[420605017,1776313832433,-600.0,8.657e-05,2]
[420605019,1776313832443,-600.0,8.657e-05,2]
[420605021,1776313832453,-600.0,8.657e-05,2]
[420605023,1776313832463,-600.0,8.657e-05,2]
[420605025,1776313832473,-600.0,8.657e-05,2]
[420605027,1776313832482,-600.0,8.657e-05,2]
[420605029,1776313832493,-273.02271931,8.657e-05,2]
[420605031,1776313832507,-326.97728069,8.657e-05,2]
[420605033,1776313832517,-600.0,8.657e-05,2]
[420605035,1776313832527,-600.0,8.657e-05,2]
[420605037,1776313832536,-600.0,8.657e-05,2]
[420605039,1776313832546,-489.12399619,8.657e-05,2]
[420605043,1776313832570,-110.87600381,8.657e-05,2]
[420605045,1776313832580,-600.0,8.657e-05,2]
[420605047,1776313832590,-600.0,8.657e-05,2]
[420605049,1776313832600,-150.0,8.657e-05,2]
[420605051,1776313832610,-489.29802917,8.657e-05,2]
[420605060,1776313832763,-110.70197083,8.657e-05,2]
[420605061,1776313832773,-150.0,8.657e-05,2]
[420605062,1776313832783,-600.0,8.657e-05,2]
[420605063,1776313832793,-242.14721006,8.657e-05,2]
[420605064,1776313832803,-600.0,8.657e-05,2]
[420605065,1776313832812,-500.0,8.657e-05,2]
[420605066,1776313832822,-600.0,8.657e-05,2]
[420605067,1776313832832,-500.0,8.657e-05,2]
[420605068,1776313832841,-500.0,8.657e-05,2]
[420605069,1776313832851,-500.0,8.657e-05,2]
[420605070,1776313832860,-473.00678371,8.657e-05,2]
[420605071,1776313832873,-26.99321629,8.657e-05,2]
[420605072,1776313832882,-274.48929644,8.657e-05,2]
[420605082,1776313832967,-7.85044368,8.657e-05,2]
[420605084,1776313832977,-600.0,8.657e-05,2]
[420605086,1776313832987,-457.311833,8.657e-05,2]
[420605089,1776313832999,-42.688167,8.657e-05,2]
[420605091,1776313833009,-415.75930629,8.657e-05,2]
[420605093,1776313833025,-84.24069371,8.657e-05,2]
[420605095,1776313833035,-500.0,8.657e-05,2]
[420605097,1776313833045,-500.0,8.657e-05,2]
[420605099,1776313833054,-600.0,8.657e-05,2]
[420605101,1776313833063,-500.0,8.657e-05,2]
[420605103,1776313833073,-500.0,8.657e-05,2]
[420605105,1776313833082,-503.27087784,8.657e-05,2]
[420605107,1776313833091,-510.81934914,8.657e-05,2]
[420605108,1776313833111,-89.18065086,8.657e-05,2]
[420605109,1776313833120,-500.0,8.657e-05,2]
[420605110,1776313833130,-500.0,8.657e-05,2]
[420605111,1776313833139,-500.0,8.657e-05,2]
[420605112,1776313833149,-500.0,8.657e-05,2]
[420605113,1776313833158,-500.0,8.657e-05,2]
[420605114,1776313833167,-500.0,8.657e-05,2]
[420605115,1776313833177,-600.0,8.657e-05,2]
[420605116,1776313833186,-500.0,8.657e-05,2]
[420605117,1776313833196,-500.0,8.657e-05,2]
[420605118,1776313833205,-500.0,8.657e-05,2]
[420605119,1776313833214,-500.0,8.657e-05,2]
[420605120,1776313833223,-500.0,8.657e-05,2]
[420605121,1776313833233,-500.0,8.657e-05,2]
[420605122,1776313833244,-500.0,8.657e-05,2]
[420605123,1776313833254,-519.06792331,8.657e-05,2]
[420605124,1776313833263,-500.0,8.657e-05,2]
[420605125,1776313833273,-500.0,8.657e-05,2]
[420605126,1776313833282,-396.75211577,8.657e-05,2]
[420605127,1776313833292,-601.2138537,8.657e-05,2]
[420605128,1776313833301,-500.0,8.657e-05,2]
[420605129,1776313833311,-500.0,8.657e-05,2]
[420605130,1776313833321,-500.0,8.657e-05,2]
[420605131,1776313833331,-500.0,8.657e-05,2]
[420605132,1776313833341,-500.0,8.657e-05,2]
[420605133,1776313833350,-500.0,8.657e-05,2]
[420605134,1776313833360,-500.0,8.657e-05,2]
[420605135,1776313833370,-500.0,8.657e-05,2]
[420605136,1776313833379,-500.0,8.657e-05,2]
[420605137,1776313833388,-424.32829107,8.657e-05,2]
[420605138,1776313833401,-75.67170893,8.657e-05,2]
[420605139,1776313833410,-313.16066557,8.657e-05,2]
[420605140,1776313834505,152.0,8.27e-05,7]
[420605141,1776313838096,-152.0,8.656e-05,7]
[420605142,1776313838107,-200.70089067,8.657e-05,2]
[420605143,1776313838117,-500.0,8.657e-05,2]
[420605144,1776313838127,-500.0,8.657e-05,2]
[420605145,1776313838136,-500.0,8.657e-05,2]
[420605146,1776313838146,-500.0,8.657e-05,2]
[420605147,1776313838157,-264.12427421,8.657e-05,2]
[420605148,1776313838169,-235.87572579,8.657e-05,2]
[420605149,1776313838179,-94.60165283,8.657e-05,2]
[420605150,1776313838208,-405.39834717,8.657e-05,2]
[420605151,1776313838218,-165.79092284,8.657e-05,2]
[420605152,1776313838322,-334.20907716,8.657e-05,2]
[420605153,1776313838332,-321.65343567,8.657e-05,2]
[420605154,1776313838342,-344.13748817,8.657e-05,2]
[420605182,1776313840036,-654.94251183,8.657e-05,2]
[420605184,1776313840045,-500.0,8.657e-05,2]
[420605186,1776313840055,-500.0,8.657e-05,2]
[420605188,1776313840064,-500.0,8.657e-05,2]
[420605189,1776313840073,-500.0,8.657e-05,2]
[420605190,1776313840083,-500.0,8.657e-05,2]
[420605191,1776313840092,-147.45805826,8.657e-05,2]
[420605192,1776313840104,-352.54194174,8.657e-05,2]
[420605193,1776313840113,-500.0,8.657e-05,2]
[420605194,1776313840122,-355.87490142,8.657e-05,2]
[420605195,1776313840134,-144.12509858,8.657e-05,2]
[420605196,1776313840143,-500.0,8.657e-05,2]
[420605197,1776313840152,-500.0,8.657e-05,2]
[420605198,1776313840163,-617.62915396,8.657e-05,2]
[420605199,1776313840172,-500.0,8.657e-05,2]
[420605200,1776313840182,-500.0,8.657e-05,2]
[420605201,1776313840191,-500.0,8.657e-05,2]
[420605202,1776313840201,-500.0,8.657e-05,2]
[420605203,1776313840210,-500.0,8.657e-05,2]
[420605204,1776313840220,-500.0,8.657e-05,2]
[420605205,1776313840229,-500.0,8.657e-05,2]
[420605206,1776313840239,-500.0,8.657e-05,2]
[420605207,1776313840249,-500.0,8.657e-05,2]
[420605208,1776313840259,-500.0,8.657e-05,2]
[420605209,1776313840268,-233.29468384,8.657e-05,2]
[420605210,1776313840277,-500.0,8.657e-05,2]
[420605211,1776313840287,-500.0,8.657e-05,2]
[420605212,1776313840296,-446.83738744,8.657e-05,2]
[420605213,1776313840360,-53.16261256,8.657e-05,2]
[420605214,1776313840370,-152.23199902,8.657e-05,2]
[420605215,1776313840379,-150.0,8.657e-05,2]
[420605216,1776313840389,-150.0,8.657e-05,2]
[420605217,1776313840398,-125.23420454,8.657e-05,2]
[420605218,1776313840410,-374.76579546,8.657e-05,2]
[420605219,1776313840419,-10.39024877,8.657e-05,2]
[420605220,1776313840430,-209.16940961,8.657e-05,2]
[420605221,1776313840441,-500.0,8.657e-05,2]
[420605222,1776313840450,-500.0,8.657e-05,2]
[420605223,1776313840460,-150.0,8.657e-05,2]
[420605224,1776313840470,-378.85381235,8.657e-05,2]
[420605225,1776313840485,-121.14618765,8.657e-05,2]
[420605226,1776313840494,-500.0,8.657e-05,2]
[420605227,1776313840504,-500.0,8.657e-05,2]
[420605228,1776313840514,-500.0,8.657e-05,2]
[420605229,1776313840523,-500.0,8.657e-05,2]
[420605230,1776313840532,-500.0,8.657e-05,2]
[420605231,1776313840541,-500.0,8.657e-05,2]
[420605232,1776313840550,-500.0,8.657e-05,2]
[420605233,1776313840560,-228.5880865,8.657e-05,2]
[420605234,1776313840569,-199.78576386,8.657e-05,2]
[420605235,1776313840578,-150.0,8.657e-05,2]
[420605236,1776313840587,-123.91324145,8.657e-05,2]
[420605237,1776313840599,-370.08675855,8.657e-05,2]
[420605238,1776313840609,-194.02896579,8.657e-05,2]
[420605239,1776313840651,-299.97103421,8.657e-05,2]
[420605240,1776313840660,-494.0,8.657e-05,2]
[420605241,1776313840669,-494.0,8.657e-05,2]
[420605242,1776313840678,-494.0,8.657e-05,2]
[420605243,1776313840687,-494.0,8.657e-05,2]
[420605244,1776313840697,-494.0,8.657e-05,2]
[420605245,1776313840706,-286.21918956,8.657e-05,2]
[420605246,1776313840722,-207.78081044,8.657e-05,2]
[420605247,1776313840731,-56.78252138,8.657e-05,2]
[420605254,1776313843116,-437.21747862,8.657e-05,2]
[420605255,1776313843126,-494.0,8.657e-05,2]
[420605256,1776313843135,-494.0,8.657e-05,2]
[420605257,1776313843147,-494.0,8.657e-05,2]
[420605258,1776313843157,-494.0,8.657e-05,2]
[420605259,1776313843166,-494.0,8.657e-05,2]
[420605260,1776313843175,-494.0,8.657e-05,2]
[420605261,1776313843184,-494.0,8.657e-05,2]
[420605262,1776313843194,-494.0,8.657e-05,2]
[420605263,1776313843202,-494.0,8.657e-05,2]
[420605264,1776313843212,-494.0,8.657e-05,2]
[420605265,1776313843222,-494.0,8.657e-05,2]
[420605266,1776313843232,-494.0,8.657e-05,2]
[420605267,1776313843241,-494.0,8.657e-05,2]
[420605268,1776313843250,-494.0,8.657e-05,2]
[420605269,1776313843259,-496.0,8.657e-05,2]
[420605270,1776313843269,-213.47041,8.657e-05,2]
[420605271,1776313843278,-213.47041,8.657e-05,2]
[420605272,1776313843288,-213.47041,8.657e-05,2]
[420605273,1776313843297,-198.511517,8.657e-05,2]
[420605274,1776313843306,-213.47041,8.657e-05,2]
[420605275,1776313843315,-198.511517,8.657e-05,2]
[420605276,1776313843325,-198.511517,8.657e-05,2]
[420605277,1776313843334,-198.511517,8.657e-05,2]
[420605278,1776313843344,-193.16,8.669e-05,2]
[420605279,1776313843354,-1600.0,8.675e-05,2]
[420605280,1776313843363,-273.0,8.681e-05,2]
[420605281,1776313843372,-500.0,8.685e-05,2]
[420605282,1776313843382,-1130.0,8.689e-05,2]
[420605283,1776313843391,-150.0,8.692e-05,2]
[420605284,1776313843400,-1747.0,8.705e-05,2]
[420605285,1776313843409,-602.0,8.723e-05,2]
[420605286,1776313843418,-213.47041,8.723e-05,2]
[420605287,1776313843427,-213.47041,8.723e-05,2]
[420605288,1776313843437,-213.47041,8.723e-05,2]
[420605289,1776313843446,-198.511517,8.723e-05,2]
[420605290,1776313843455,-213.47041,8.723e-05,2]
[420605291,1776313843464,-198.511517,8.723e-05,2]
[420605292,1776313843474,-198.511517,8.723e-05,2]
[420605293,1776313843484,-198.511517,8.723e-05,2]
[420605294,1776313843494,-1046.01,8.727e-05,2]
[420605296,1776313843503,-397.54,8.728e-05,2]
[420605298,1776313843513,-310.0,8.744e-05,2]
[420605299,1776313843522,-331.0,8.762e-05,2]
[420605300,1776313843531,-386.0,8.779e-05,2]
[420605301,1776313843540,-334.0,8.797e-05,2]
[420605303,1776313843550,-1833.0,8.835e-05,2]
[420605304,1776313843559,-500.0,8.849e-05,2]
[420605305,1776313843568,-1412.0,8.852e-05,2]
[420605306,1776313843578,-1770.0,8.87e-05,2]
[420605307,1776313843588,-831.0,8.888e-05,2]
[420605308,1776313843597,-150.0,8.9e-05,2]
[420605309,1776313843606,-1935.0,8.905e-05,2]
[420605310,1776313843615,-1786.0,8.923e-05,2]
[420605311,1776313843625,-500.0,8.931e-05,2]
[420605312,1776313843634,-999.08,8.931e-05,2]
[420605313,1776313843644,-996.2092438,8.94e-05,2]
[420605314,1776313843656,-632.7907562,8.94e-05,2]
[420605315,1776313843666,-631.0,8.958e-05,2]
[420605316,1776313843675,-208.0,9.078e-05,3]
[420605317,1776313843685,-250.0,9.18e-05,2]
[420605318,1776313843694,-480.0,9.195e-05,2]
[420605319,1776313843703,-255.0,9.195e-05,2]
[420605320,1776313843712,-3298.17590218,9.196e-05,2]
[420605321,1776313843722,-250.0,9.196e-05,2]
[420605322,1776313843731,-5000.0,9.196e-05,2]
[420605323,1776313843741,-250.0,9.196e-05,2]
[420605324,1776313843750,-250.0,9.196e-05,2]
[420605325,1776313843760,-500.0,9.205e-05,2]
[420605326,1776313843769,-999.08,9.205e-05,2]
[420605327,1776313843778,-2310.0,9.4e-05,2]
[420605328,1776313843788,-2000.0,9.454e-05,2]
[420605329,1776313843797,-500.0,9.479e-05,2]
[420605330,1776313843806,-999.08,9.479e-05,2]
[420605331,1776313843815,-153.74,9.57e-05,2]
[420605332,1776313843824,-2000.0,9.6e-05,2]
[420605333,1776313843833,-214.0,9.614e-05,5]
[420605334,1776313843842,-1600.0,9.639e-05,2]
[420605335,1776313843851,-161.05,9.646e-05,2]
[420605336,1776313843860,-500.0,9.753e-05,2]
[420605337,1776313844316,-999.08,9.753e-05,2]
[420605338,1776313844335,-208.0,9.796e-05,3]
[420605339,1776313844345,-1072.1541836,9.838e-05,2]
[420605340,1776313844354,-213.47041,9.973e-05,2]
[420605341,1776313844363,-213.47041,9.973e-05,2]
[420605342,1776313844372,-171.04859964,9.973e-05,2]
[420605343,1776313846090,-42.42181036,9.973e-05,2]
[420605344,1776313846100,-198.511517,9.973e-05,2]
[420605345,1776313846109,-213.47041,9.973e-05,2]
[420605346,1776313846119,-198.511517,9.973e-05,2]
[420605347,1776313846128,-198.511517,9.973e-05,2]
[420605348,1776313846137,-198.511517,9.973e-05,2]
[420605349,1776313846146,-55.84061838,0.0001,2]
[420605350,1776313846159,-223.06407593,0.0001,2]
[420605351,1776313846168,-212.83844332,0.0001,2]
[420605352,1776313846177,-8138.80196361,0.0001,2]
[420605353,1776313846188,-10048.19803639,0.0001,2]
[420605354,1776313846198,-333.04167238,0.0001,2]
[420605355,1776313846207,-200.0,0.0001,2]
[420605356,1776313846216,-151.0,0.0001,2]
[420605357,1776313846225,-151.0,0.0001,2]
[420605358,1776313846234,-151.0,0.0001,2]
[420605359,1776313846244,-500.0,0.0001,2]
[420605360,1776313846253,-151.0,0.0001,2]
[420605361,1776313846263,-500.0,0.0001,2]
[420605362,1776313846272,-151.0,0.0001,2]
[420605363,1776313846281,-500.0,0.0001,2]
[420605364,1776313846291,-151.0,0.0001,2]
[420605365,1776313846300,-500.0,0.0001,2]
[420605366,1776313846310,-151.0,0.0001,2]
[420605367,1776313846319,-500.0,0.0001,2]
[420605368,1776313846328,-151.0,0.0001,2]
[420605369,1776313846337,-151.0,0.0001,2]
[420605370,1776313846346,-500.0,0.0001,2]
[420605371,1776313846355,-151.0,0.0001,2]
[420605372,1776313846364,-500.0,0.0001,2]
[420605373,1776313846374,-151.0,0.0001,2]
[420605374,1776313846383,-500.0,0.0001,2]
[420605375,1776313846392,-500.0,0.0001,2]
[420605376,1776313846401,-500.0,0.0001,2]
[420605377,1776313846411,-500.0,0.0001,2]
[420605378,1776313846420,-298.57995616,0.0001,2]
[420605380,1776313846429,-151.56176044,0.0001,2]
[420605381,1776313846438,-2000.0,0.0001,2]
[420605382,1776313846448,-2000.0,0.0001,2]
[420605383,1776313846457,-2000.0,0.0001,2]
[420605384,1776313846467,-2000.0,0.0001,2]
[420605385,1776313846476,-2000.0,0.0001,2]
[420605386,1776313846485,-2000.0,0.0001,2]
[420605387,1776313846496,-323.50132,0.0001,2]
[420605388,1776313846505,-323.50133,0.0001,2]
[420605389,1776313846515,-323.50132,0.0001,2]
[420605390,1776313846525,-323.50133,0.0001,2]
[420605391,1776313846534,-323.50132,0.0001,2]
[420605392,1776313846544,-323.50132,0.0001,2]
[420605393,1776313846553,-200.0,0.00010019,2]
[420605394,1776313846562,-500.0,0.00010027,2]
[420605395,1776313846572,-999.08,0.00010027,2]
[420605396,1776313846581,-653.33015092,0.0001006,2]
[420605397,1776313846590,-300.0,0.00010115,2]
[420605398,1776313846600,-231.32873108,0.00010165,2]
[420605399,1776313846609,-7023.99805755,0.00010165,2]
[420605400,1776313846619,-5000.0,0.00010165,2]
[420605401,1776313846628,-5000.0,0.00010165,2]
[420605402,1776313846637,-128.83318266,0.00010165,2]
[420605403,1776313846854,-1295.79346964,0.00010165,2]
[420605404,1776313846865,-3575.3733477,0.00010165,2]
[420605405,1776313846874,-213.47041,0.00010165,2]
[420605406,1776313846884,-213.47041,0.00010165,2]
[420605407,1776313846893,-213.47041,0.00010165,2]
[420605408,1776313846903,-198.511517,0.00010165,2]
[420605409,1776313846912,-213.47041,0.00010165,2]
[420605410,1776313846921,-198.511517,0.00010165,2]
[420605411,1776313846931,-198.511517,0.00010165,2]
[420605412,1776313846941,-198.511517,0.00010165,2]
[420605413,1776313846949,-191.3162,0.000102,2]
[420605414,1776313846959,-1971.91147274,0.000103,3]
[420605415,1776313846989,-3560.08852726,0.000103,3]
[420605416,1776313846999,-500.0,0.00010301,2]
[420605417,1776313847008,-999.08,0.00010301,2]
[420605418,1776313847018,-951.7496953,0.00010311,2]
[420605419,1776313847028,-20579.3212272,0.00010396,2]
[420605420,1776313847038,-500.75597371,0.00010473,2]
[420605421,1776313847047,-500.0,0.00010473,2]
[420605422,1776313847056,-500.0,0.00010473,2]
[420605423,1776313847065,-500.0,0.00010473,2]
[420605424,1776313847075,-615.32089662,0.00010473,2]
[420605425,1776313847084,-210.60663321,0.00010473,2]
[420605426,1776313847093,-500.0,0.00010473,2]
[420605427,1776313847103,-500.0,0.00010473,2]
[420605428,1776313847112,-59612.95899937,0.000105,2]
[420605430,1776313920576,720.78,8.4e-05,2]
[420605431,1776313986672,177.0,8.4e-05,3]
[420605432,1776314005501,5000.01,8.26e-05,2]
[420605433,1776314005527,5000.01,8.26e-05,2]
[420605434,1776314005553,5000.01,8.26e-05,2]
[420605435,1776314005578,9823.01,8.26e-05,2]
[420605436,1776314005602,10000.01,8.26e-05,2]
[420605437,1776314005627,10000.01,8.26e-05,2]
[420605438,1776314005653,10000.01,8.26e-05,2]
[420605439,1776314005677,10000.01,8.26e-05,2]
[420605440,1776314005702,10000.01,8.26e-05,2]
[420605441,1776314005727,10000.01,8.26e-05,2]
[420605442,1776314005751,10000.01,8.26e-05,2]
[420605443,1776314005777,10000.01,8.26e-05,2]
[420605444,1776314005802,10000.01,8.26e-05,2]
[420605445,1776314005832,605677.6473,8.26e-05,2]
[420605446,1776314049292,168.0,8.26e-05,3]
[420605447,1776314111117,160.0,8.26e-05,3]
[420605448,1776314111313,159.0,8.26e-05,3]
[420605449,1776314165525,895.33859528,7e-05,3]
[420605450,1776314165556,152.0,8.26e-05,3]
[420605451,1776314226616,152.0,8.26e-05,3]
[420605454,1776314347435,152.0,8.26e-05,3]
[420605455,1776314405623,152.0,8.26e-05,3]
[420605456,1776314412085,159.0,8.26e-05,3]
[420605457,1776314431351,159.0,8.26e-05,3]
[420605458,1776314526260,152.0,8.26e-05,3]
[420605459,1776314586854,152.0,8.26e-05,3]
[420605460,1776314648540,152.0,8.26e-05,3]
[420605461,1776314699439,-152.0,8.42e-05,7]
[420605462,1776314712175,152.0,8.26e-05,3]
[420605463,1776314712271,159.0,8.26e-05,3]
[420605464,1776314736103,152.0,8.418e-05,7]
[420605465,1776314766563,152.0,8.26e-05,3]
[420605466,1776314887091,152.0,8.26e-05,3]
[420605467,1776314953992,152.0,8.26e-05,3]
[420605565,1776315033542,-150.0,8.657e-05,2]
[420605567,1776315033551,-161.10065646,8.657e-05,2]
[420605569,1776315033560,-1799.42590887,8.903e-05,2]
[420605572,1776315033583,-200.57409113,8.903e-05,2]
[420605574,1776315033593,-667.95422887,9e-05,2]
[420605577,1776315033606,-714.1358615,9e-05,2]
[420605579,1776315033616,-500.0,9.01e-05,3]
[420605581,1776315033625,-259.55927874,9.083e-05,2]
[420605583,1776315033635,-336.97,9.096e-05,2]
[420605584,1776315033648,-150.0,9.1e-05,2]
[420605586,1776315033658,-1200.0,9.102e-05,2]
[420605589,1776315033667,-463.56,9.103e-05,2]
[420605591,1776315033677,-500.0,9.11e-05,2]
[420605593,1776315033687,-1839.8,9.131e-05,2]
[420605595,1776315033696,-397.0,9.141e-05,5]
[420605597,1776315033706,-153.23295601,9.247e-05,2]
[420605599,1776315033715,-155.37473709,9.247e-05,2]
[420605601,1776315033725,-151.17276315,9.247e-05,2]
[420605603,1776315033734,-154.00632815,9.247e-05,2]
[420605605,1776315033744,-202.6843081,9.247e-05,2]
[420605606,1776315033753,-151.69617347,9.247e-05,2]
[420605608,1776315033763,-150.0,9.247e-05,2]
[420605610,1776315033773,-150.0,9.418e-05,2]
[420605613,1776315033783,-500.0,9.444e-05,2]
[420605615,1776315033797,-578.20924308,9.444e-05,2]
[420605617,1776315033807,-193.77743014,9.493e-05,2]
[420605619,1776315033816,-250.0,9.493e-05,2]
[420605621,1776315033826,-500.0,9.499e-05,2]
[420605623,1776315033836,-500.0,9.554e-05,2]
[420605625,1776315033845,-150.0,9.589e-05,2]
[420605627,1776315033855,-500.0,9.609e-05,2]
[420605629,1776315033865,-500.0,9.664e-05,2]
[420605631,1776315033874,-150.0,9.672e-05,2]
[420605632,1776315033884,-500.0,9.672e-05,2]
[420605633,1776315033893,-599.0,9.672e-05,2]
[420605634,1776315033903,-500.0,9.719e-05,2]
[420605635,1776315033912,-150.0,9.76e-05,2]
[420605636,1776315033922,-500.0,9.774e-05,2]
[420605637,1776315033931,-1100.0,9.8e-05,3]
[420605638,1776315033941,-4345.1265,9.808e-05,2]
[420605639,1776315033951,-150.0,9.822e-05,2]
[420605640,1776315033961,-174.61919142,9.823e-05,2]
[420605641,1776315033971,-1742.54680448,9.823e-05,2]
[420605642,1776315033984,-7809.62106099,9.823e-05,2]
[420605643,1776315033993,-693.3919763,9.823e-05,2]
[420605644,1776315034003,-151.0,9.823e-05,2]
[420605645,1776315034013,-681.16088203,9.823e-05,2]
[420605646,1776315034023,-152.0,9.823e-05,2]
[420605647,1776315034033,-152.0,9.823e-05,2]
[420605648,1776315034044,-152.0,9.823e-05,2]
[420605649,1776315034054,-44.39283168,9.823e-05,2]
[420605650,1776315034070,-107.60716832,9.823e-05,2]
[420605651,1776315034079,-270.00000094,9.823e-05,2]
[420605652,1776315034090,-235.75327194,9.823e-05,2]
[420605653,1776315034099,-244.476143,9.823e-05,2]
[420605654,1776315034108,-253.52176029,9.823e-05,2]
[420605655,1776315034118,-262.90206542,9.823e-05,2]
[420605656,1776315034127,-272.62944185,9.823e-05,2]
[420605657,1776315034136,-282.71673119,9.823e-05,2]
[420605658,1776315034146,-293.17725025,9.823e-05,2]
[420605659,1776315034156,-304.02480851,9.823e-05,2]
[420605660,1776315034165,-315.27372642,9.823e-05,2]
[420605661,1776315034175,-326.9388543,9.823e-05,2]
[420605662,1776315034184,-339.03559191,9.823e-05,2]
[420605663,1776315034194,-151.0,9.823e-05,2]
[420605664,1776315034203,-28036.51,9.828e-05,2]
[420605665,1776315034212,-9999.99,9.828e-05,2]
[420605666,1776315034223,-999.99,9.829e-05,2]
[420605667,1776315034232,-9999.99,9.829e-05,2]
[420605668,1776315034242,-150.99,9.829e-05,2]
[420605669,1776315034252,-4999.99,9.829e-05,2]
[420605670,1776315034262,-9999.99,9.829e-05,2]
[420605671,1776315034272,-17908.93,9.829e-05,2]
[420605672,1776315034282,-500.0,9.829e-05,2]
[420605673,1776315034292,-500.0,9.829e-05,2]
[420605674,1776315034302,-152.0,9.831e-05,7]
[420605675,1776315034312,-9905.5980765,9.878e-05,2]
[420605676,1776315034321,-151.0,9.878e-05,2]
[420605677,1776315034330,-500.0,9.884e-05,2]
[420605678,1776315034340,-363.77598971,9.885e-05,2]
[420605679,1776315034349,-3614.70770446,9.896e-05,2]
[420605680,1776315034359,-2200.0,9.9e-05,3]
[420605681,1776315034368,-161.91790153,9.901e-05,2]
[420605682,1776315034378,-500.0,9.901e-05,2]
[420605683,1776315034387,-500.0,9.901e-05,2]
[420605684,1776315034396,-500.0,9.901e-05,2]
[420605685,1776315034406,-500.0,9.901e-05,2]
[420605686,1776315034416,-500.0,9.901e-05,2]
[420605687,1776315034425,-500.0,9.901e-05,2]
[420605688,1776315034435,-500.0,9.901e-05,2]
[420605689,1776315034444,-500.0,9.901e-05,2]
[420605690,1776315034454,-500.0,9.901e-05,2]
[420605691,1776315034465,-500.0,9.901e-05,2]
[420605692,1776315034474,-432.63844244,9.901e-05,2]
[420605693,1776315034484,-150.0,9.901e-05,2]
[420605694,1776315034493,-150.0,9.901e-05,2]
[420605695,1776315034503,-150.0,9.901e-05,2]
[420605696,1776315034512,-200.0,9.901e-05,2]
[420605697,1776315034521,-150.0,9.932e-05,2]
[420605698,1776315034531,-1428.38747117,9.933e-05,2]
[420605699,1776315034540,-500.0,9.933e-05,2]
[420605700,1776315034550,-500.0,9.933e-05,2]
[420605701,1776315034560,-500.0,9.933e-05,2]
[420605702,1776315034569,-500.0,9.933e-05,2]
[420605703,1776315034578,-500.0,9.933e-05,2]
[420605704,1776315034588,-500.0,9.933e-05,2]
[420605705,1776315034597,-500.0,9.933e-05,2]
[420605706,1776315034607,-500.0,9.933e-05,2]
[420605707,1776315034616,-500.0,9.933e-05,2]
[420605708,1776315034625,-721.12765535,9.933e-05,2]
[420605709,1776315034635,-500.0,9.933e-05,2]
[420605710,1776315034644,-500.0,9.933e-05,2]
[420605711,1776315034653,-200.0,9.933e-05,2]
[420605712,1776315034663,-151.0,9.933e-05,2]